bitfinex/quotes_ETHUSD_20241023
["timestamp","ask_amount","ask_price","bid_price","bid_amount"]
[1729660060571,0.813,2618.7,2618.3,4.0512834]
[1729660060729,4.24982,2618.7,2618.1,8.55642167]
[1729660060923,0.813,2618.7,2618.2,3.43738]
[1729660061166,4.24982,2618.7,2618.1,5.11890167]
[1729660061675,4.24982,2618.7,2618.1,8.55643167]
[1729660062143,0.813,2618.7,2618.3,1.68139167]
[1729660062341,0.813,2618.7,2618.4,3.43714]
[1729660062543,0.813,2618.7,2618.5,0.51185317]
[1729660065249,0.813,2618.7,2618.4,3.4372]
[1729660065438,0.813,2618.7,2618.2,8.55614167]
[1729660065633,0.813,2618.7,2618.3,3.43733]
[1729660066776,3.43697,2618.6,2618.0,0.7692]
[1729660066933,3.43697,2618.6,2618.0,3.43762]
[1729660066934,0.813,2618.5,2618.0,3.43762]
[1729660067135,4.25009,2618.5,2618.1,0.343762]
[1729660067438,0.813,2618.5,2618.1,0.343762]
[1729660067953,4.25014,2618.5,2618.1,0.343762]
[1729660068155,7.68735,2618.5,2618.1,0.343762]
[1729660068352,7.68735,2618.5,2617.9,1.68139167]
[1729660068585,4.25014,2618.5,2617.9,5.11924167]
[1729660069084,4.25014,2618.5,2618.0,5.11909167]
[1729660069775,4.25014,2618.5,2618.0,3.4377]
[1729660070194,4.25014,2618.5,2618.0,5.11909167]
[1729660070358,4.25014,2618.5,2618.0,5.97479184]
[1729660070557,0.813,2618.4,2617.8,5.11930167]
[1729660070787,0.813,2618.4,2617.7,2.45059167]
[1729660070788,2.49439167,2618.4,2617.7,2.45059167]
[1729660071079,4.25066,2618.1,2617.5,5.11967167]
[1729660071279,0.813,2618.1,2617.6,6.64825]
[1729660071440,5.93200167,2618.1,2617.7,0.83296417]
[1729660071644,4.25061,2618.1,2617.7,0.83296417]
[1729660072276,0.813,2618.1,2617.7,0.83296417]
[1729660073659,4.25061,2618.1,2617.6,3.4382]
[1729660073857,0.813,2618.1,2617.7,3.43813]
[1729660074074,0.813,2618.1,2617.6,5.11959167]
[1729660074075,0.813,2618.1,2617.6,1.68139167]
[1729660074253,0.813,2618.1,2617.6,3.43818]
[1729660074648,0.813,2618.1,2617.6,5.11957167]
[1729660075716,0.813,2618.1,2617.6,1.68139167]
[1729660075988,0.813,2618.1,2617.6,5.70846184]
[1729660076556,0.813,2618.1,2617.6,4.02707017]
[1729660077690,0.813,2618.1,2617.6,5.70846184]
[1729660077887,0.813,2618.1,2617.7,3.4381]
[1729660078551,0.813,2618.1,2617.6,2.27028184]
[1729660078752,0.813,2618.1,2617.6,5.70851184]
[1729660080455,4.25061,2618.1,2617.6,4.02712017]
[1729660080657,0.813,2618.1,2617.6,9.14669184]
[1729660081153,0.813,2618.1,2617.6,5.70846184]
[1729660081353,0.813,2618.1,2617.7,3.4381]
[1729660082497,0.813,2618.1,2617.6,5.70846184]
[1729660082655,2.50329167,2617.9,2617.4,3.43839]
[1729660082850,0.8219,2617.9,2617.5,1.68139167]
[1729660083056,0.8219,2617.9,2617.6,5.63154984]
[1729660083271,0.8219,2617.9,2617.6,9.06971984]
[1729660084417,0.8219,2617.9,2617.7,3.4381]
[1729660084779,0.8219,2617.9,2617.7,3.43806]
[1729660086169,0.8219,2617.9,2617.7,5.11945167]
[1729660086374,1.68139167,2618.1,2617.6,3.95014817]
[1729660086614,2.50329167,2618.0,2617.4,3.43843]
[1729660086957,0.8219,2617.8,2617.5,3.21]
[1729660087122,0.8219,2617.8,2617.6,3.43824]
[1729660087415,0.8219,2617.8,2617.4,5.11981167]
[1729660087577,0.8219,2617.8,2617.5,3.43837]
[1729660087772,0.8219,2617.8,2617.4,5.82880922]
[1729660087977,0.8219,2617.8,2617.4,4.14741755]
[1729660090799,0.8219,2617.8,2617.4,5.82880922]
[1729660091031,0.8219,2617.8,2617.5,3.43837]
[1729660091529,0.8219,2617.8,2617.4,4.14741755]
[1729660091693,0.8219,2617.8,2617.4,3.43852]
[1729660092390,0.8219,2617.8,2617.5,3.43838]
[1729660092615,0.8219,2617.8,2617.4,3.43852]
[1729660092616,0.8219,2617.8,2617.3,5.12004167]
[1729660092889,0.8219,2617.8,2617.4,3.43845]
[1729660093335,0.8219,2617.8,2617.3,5.12004167]
[1729660093643,0.8219,2617.8,2617.5,6.87671]
[1729660094130,0.8219,2617.8,2617.4,5.63190584]
[1729660094332,0.8219,2617.8,2617.4,3.95051417]
[1729660094535,0.8219,2617.8,2617.4,0.51200417]
[1729660094701,0.8219,2617.8,2617.5,3.43837]
[1729660096025,0.8219,2617.8,2617.5,6.02679925]
[1729660096229,0.8219,2617.8,2617.6,3.43819]
[1729660097233,0.8219,2617.8,2617.5,3.43838]
[1729660097527,0.8219,2617.8,2617.6,3.43825]
[1729660097894,0.8219,2617.8,2617.6,3.43818]
[1729660098093,0.8219,2617.8,2617.6,4.34518158]
[1729660098535,0.8219,2617.8,2617.7,3.43813]
[1729660098919,2.50329167,2617.8,2617.6,0.90700158]
[1729660099125,2.50329167,2617.8,2617.2,3.4387]
[1729660099126,0.8219,2617.7,2617.2,5.12009167]
[1729660099433,0.8219,2617.7,2617.2,3.4387]
[1729660099632,2.50329167,2617.7,2617.2,8.11024617]
[1729660100291,2.50329167,2617.7,2617.3,3.43863]
[1729660100495,2.50329167,2617.7,2617.2,4.67153617]
[1729660100496,1.68139167,2617.6,2617.2,4.67153617]
[1729660100690,2.50329167,2617.3,2616.8,4.9701638]
[1729660100903,2.50329167,2616.9,2616.6,3.43946]
[1729660101144,0.8219,2616.9,2616.6,6.87897]
[1729660101347,0.8219,2616.9,2616.7,3.43944]
[1729660101502,0.8219,2616.9,2616.7,3.43943]
[1729660101846,2.50329167,2616.9,2616.5,3.43965]
[1729660102210,0.8219,2616.9,2616.6,3.43956]
[1729660102936,0.8219,2616.9,2616.5,3.43965]
[1729660103136,0.8219,2616.9,2616.5,6.87929]
[1729660104220,0.8219,2616.9,2616.5,3.43964]
[1729660105122,0.8219,2616.9,2616.6,3.43957]
[1729660105601,0.8219,2616.9,2616.5,3.43964]
[1729660105811,0.8219,2616.9,2616.5,7.52394357]
[1729660106236,0.8219,2616.9,2616.6,3.43956]
[1729660106750,0.8219,2616.9,2616.5,4.08430357]
[1729660106751,0.8219,2616.9,2616.7,3.43943]
[1729660108609,1.68139167,2617.1,2616.7,3.43943]
[1729660108838,2.47059167,2617.1,2616.7,3.43943]
[1729660111250,0.7892,2617.1,2616.7,3.43943]
[1729660111431,0.7892,2617.1,2616.8,3.43926]
[1729660112332,0.7892,2617.1,2616.7,4.01592052]
[1729660113467,0.7892,2617.1,2616.8,3.43929]
[1729660115864,1.68139167,2617.0,2616.6,3.43956]
[1729660116065,0.7892,2616.7,2616.4,3.43976]
[1729660116364,0.7892,2616.7,2616.4,4.5659174]
[1729660117008,0.7892,2616.7,2616.5,3.4397]
[1729660118942,0.7892,2616.7,2616.4,3.43983]
[1729660121386,0.7892,2616.7,2616.3,3.99643403]
[1729660121567,0.7892,2616.7,2616.3,7.43631403]
[1729660121767,0.7892,2616.7,2616.4,3.43982]
[1729660123289,0.7892,2616.7,2616.3,3.99638403]
[1729660123496,0.7892,2616.7,2616.3,7.43627403]
[1729660123700,0.7892,2616.7,2616.3,7.91435107]
[1729660123856,0.7892,2616.7,2616.4,3.43982]
[1729660125558,0.7892,2616.7,2616.3,0.55650403]
[1729660125758,0.7892,2616.7,2616.3,3.99645403]
[1729660130861,0.7892,2616.7,2616.3,5.6777857]
[1729660131067,0.7892,2616.7,2616.5,3.43962]
[1729660132481,0.7892,2616.7,2616.4,2.25681418]
[1729660132482,0.7892,2616.7,2616.4,4.01524251]
[1729660133922,0.7892,2616.7,2616.5,3.43962]
[1729660143957,0.7892,2616.7,2616.0,5.3924538]
[1729660143958,5.12098167,2616.6,2616.1,3.44013]
[1729660144238,0.805,2616.5,2616.1,3.44013]
[1729660144539,0.805,2616.5,2616.1,4.37145717]
[1729660145145,0.805,2616.5,2616.1,7.81161717]
[1729660145648,0.805,2616.5,2615.9,1.2008638]
[1729660145649,1.68139167,2616.4,2615.9,3.44039]
[1729660145941,1.68139167,2616.4,2616.0,3.44034]
[1729660146510,4.24477,2616.5,2616.1,3.4402]
[1729660146511,2.48639167,2616.5,2616.1,3.4402]
[1729660146738,0.805,2616.5,2616.1,6.8804]
[1729660146940,0.805,2616.5,2616.1,9.41790084]
[1729660147103,0.805,2616.5,2616.1,5.97770084]
[1729660147300,0.805,2616.5,2616.2,3.44003]
[1729660147718,0.805,2616.5,2616.1,4.29630917]
[1729660147931,0.805,2616.5,2616.1,0.85617917]
[1729660148814,0.805,2616.5,2616.1,4.29639917]
[1729660152939,0.805,2616.5,2616.1,5.97779084]
[1729660156253,0.805,2616.5,2616.1,4.29639917]
[1729660158117,0.805,2616.5,2616.1,4.29633917]
[1729660167001,0.805,2616.5,2616.1,5.97773084]
[1729660167170,0.805,2616.5,2616.1,4.29633917]
[1729660172372,0.805,2616.5,2616.1,3.44016]
[1729660173596,0.805,2616.5,2616.1,6.88033]
[1729660173771,0.805,2616.5,2616.1,3.44016]
[1729660174598,0.7787,2616.7,2616.4,1.68139167]
[1729660174812,1.68139167,2616.9,2616.3,1.68139167]
[1729660175093,4.21782,2617.0,2616.4,6.87951]
[1729660175297,1.68139167,2616.9,2616.4,7.85568655]
[1729660175474,1.68139167,2616.9,2616.4,4.41592655]
[1729660175678,0.7787,2617.0,2616.5,5.98822499]
[1729660175873,0.7787,2617.0,2616.7,3.43938]
[1729660176105,0.7787,2617.0,2616.7,3.43937]
[1729660186400,0.7857,2617.2,2616.8,3.43929]
[1729660187083,4.22449,2617.2,2616.7,3.43936]
[1729660187289,5.90588167,2617.2,2616.7,4.10014918]
[1729660187725,5.90588167,2617.2,2616.7,3.43936]
[1729660189041,1.68139167,2616.8,2616.3,4.6407438]
[1729660189213,1.68139167,2616.8,2616.3,3.43988]
[1729660189214,2.46709167,2616.7,2616.3,3.43988]
[1729660189539,0.7857,2616.7,2616.3,4.62488738]
[1729660193018,0.7857,2616.7,2616.3,8.06478738]
[1729660193627,0.7857,2616.7,2616.4,3.43982]
[1729660196360,0.7857,2616.7,2616.5,3.43967]
[1729660200829,0.7857,2616.7,2616.3,4.62486738]
[1729660201063,0.7857,2616.7,2616.4,3.43981]
[1729660202144,1.68139167,2616.6,2616.2,3.44009]
[1729660202348,0.82,2616.5,2616.1,6.88029]
[1729660202529,2.50139167,2616.5,2616.1,3.44014]
[1729660202874,0.82,2616.3,2616.1,3.44014]
[1729660203779,0.82,2616.3,2616.2,3.4401]
[1729660204973,0.82,2616.3,2616.1,3.44022]
[1729660205583,0.82,2616.3,2616.1,6.88044]
[1729660206075,0.82,2616.3,2616.1,3.44022]
[1729660206233,0.82,2616.3,2616.1,3.44015]
[1729660209086,0.82,2616.6,2616.2,3.4401]
[1729660212363,0.8048,2616.9,2616.5,1.68139167]
[1729660212563,0.8048,2617.2,2616.8,3.43931]
[1729660212780,2.48619167,2617.2,2616.8,3.43931]
[1729660215080,0.8048,2617.2,2616.8,3.43924]
[1729660216199,2.48619167,2617.2,2616.8,6.87848]
[1729660216403,2.48619167,2617.2,2616.8,3.43924]
[1729660216713,0.8048,2617.5,2617.1,1.68139167]
[1729660216853,2.48619167,2617.7,2617.1,5.12018167]
[1729660217057,2.48619167,2617.7,2617.3,3.43865]
[1729660217290,0.8048,2617.7,2617.3,4.24185]
[1729660218756,2.48619167,2617.7,2617.3,4.24185]
[1729660219190,0.8048,2617.7,2617.3,4.24185]
[1729660219994,2.48619167,2617.7,2617.3,4.24185]
[1729660221090,5.92437167,2617.7,2617.3,0.8032]
[1729660221303,5.92437167,2617.7,2616.8,1.79324697]
[1729660221304,1.68139167,2617.4,2616.9,3.43908]
[1729660221597,2.48619167,2617.5,2617.1,3.43891]
[1729660221797,0.8048,2617.5,2617.1,3.43891]
[1729660222164,2.48619167,2617.5,2617.1,3.43891]
[1729660222884,2.48619167,2617.5,2617.0,3.43904]
[1729660223085,5.92459167,2617.5,2617.0,3.43904]
[1729660223395,2.48619167,2617.5,2616.9,5.88826371]
[1729660223571,2.48619167,2617.5,2617.0,4.16735469]
[1729660224161,0.8048,2617.5,2617.0,4.16735469]
[1729660225288,2.48619167,2617.5,2617.0,4.16735469]
[1729660225663,0.8048,2617.5,2617.1,3.43891]
[1729660225865,2.48619167,2617.5,2617.1,3.43891]
[1729660226065,2.48619167,2617.5,2617.1,4.36768664]
[1729660229931,0.8048,2617.5,2617.2,3.43878]
[1729660232503,0.8048,2617.5,2617.2,3.43871]
[1729660232709,2.48619167,2617.5,2617.1,0.92877664]
[1729660232864,2.48619167,2617.5,2617.2,3.43876]
[1729660233205,0.8048,2617.5,2617.2,6.87746]
[1729660233514,0.8048,2617.5,2617.2,4.29216213]
[1729660234408,0.8048,2617.5,2617.2,7.73088213]
[1729660234617,0.8048,2617.5,2617.2,4.29216213]
[1729660234808,0.8048,2617.5,2617.2,3.4387]
[1729660235796,0.7639,2617.8,2617.4,3.43851]
[1729660236100,0.7639,2617.8,2617.3,4.21424]
[1729660236101,2.44529167,2617.8,2617.3,4.21424]
[1729660236428,2.44529167,2617.8,2617.4,3.43851]
[1729660237027,1.68139167,2617.7,2617.2,6.87737]
[1729660237390,1.68139167,2617.7,2617.2,3.43868]
[1729660237594,1.68139167,2617.7,2617.2,4.22496169]
[1729660237899,1.68139167,2617.7,2617.3,3.43865]
[1729660238317,2.44529167,2617.8,2617.4,3.43851]
[1729660239410,1.68139167,2617.7,2617.2,0.78628169]
[1729660239634,5.11958167,2617.7,2617.2,3.43877]
[1729660239948,5.11958167,2617.7,2617.2,3.4387]
[1729660240110,2.44529167,2617.8,2617.3,3.43858]
[1729660240709,5.88335167,2617.8,2617.3,3.43858]
[1729660241039,1.68139167,2617.7,2617.3,3.43858]
[1729660241839,5.88329167,2617.8,2617.2,3.43866]
[1729660242542,5.88329167,2617.8,2617.3,3.43863]
[1729660243042,1.68139167,2617.7,2617.3,3.43863]
[1729660243434,5.11953167,2617.7,2617.3,3.43863]
[1729660244215,3.43814,2617.7,2617.3,3.43863]
[1729660245848,0.7648,2617.6,2617.1,7.65334]
[1729660246014,0.7648,2617.6,2617.1,8.58681317]
[1729660248259,0.7648,2617.6,2617.2,3.43874]
[1729660249826,0.7648,2617.6,2617.1,1.70907317]
[1729660250050,0.7648,2617.3,2616.8,5.12061167]
[1729660250251,0.7648,2617.3,2616.9,3.43918]
[1729660250423,0.7648,2617.3,2617.0,0.85597917]
[1729660252033,0.7648,2617.3,2616.8,5.12061167]
[1729660252438,0.7648,2617.3,2617.0,3.43905]
[1729660254269,0.7648,2617.3,2616.8,3.43922]
[1729660254473,0.7648,2617.3,2616.8,5.12061167]
[1729660254625,0.7648,2617.3,2616.9,3.43907]
[1729660254964,0.7648,2617.3,2616.9,4.37088817]
[1729660255944,0.7648,2617.3,2617.1,3.43891]
[1729660256128,0.8189,2617.6,2617.1,4.23231]
[1729660256352,4.25718,2617.6,2617.1,4.23231]
[1729660257093,0.8189,2617.6,2617.1,5.91359167]
[1729660257299,0.8189,2617.6,2617.2,0.59900095]
[1729660257580,0.8189,2617.6,2617.2,4.03771095]
[1729660258947,0.8189,2617.6,2617.3,3.43863]
[1729660273605,0.8189,2617.6,2617.5,3.43839]
[1729660273893,0.8189,2617.6,2617.5,4.29422417]
[1729660274092,0.8176,2617.9,2617.5,4.29422417]
[1729660274789,4.25549,2617.9,2617.5,4.29422417]
[1729660275098,5.93688167,2617.9,2617.5,4.29422417]
[1729660275397,0.8176,2617.9,2617.5,4.29422417]
[1729660275895,5.93689167,2617.9,2617.5,0.85583417]
[1729660276058,5.93689167,2617.9,2617.4,3.43851]
[1729660277196,2.49899167,2617.9,2617.5,3.43836]
[1729660277537,0.8176,2617.9,2617.6,3.4382]
[1729660278270,0.8176,2617.9,2617.6,4.37492117]
[1729660280111,0.8176,2617.9,2617.6,4.37489117]
[1729660280400,1.68139167,2618.1,2617.8,3.43787]
[1729660280401,0.8176,2618.1,2617.8,3.43787]
[1729660280572,0.8176,2618.1,2617.7,3.43813]
[1729660280766,0.8176,2618.1,2617.8,0.43748512]
[1729660281686,0.8176,2618.1,2617.8,3.87540512]
[1729660283217,0.8176,2618.1,2617.9,3.43786]
[1729660283815,0.8176,2618.1,2617.8,0.43748512]
[1729660284238,0.8176,2618.1,2617.8,3.87538512]
[1729660284403,0.8176,2618.1,2617.9,0.89947768]
[1729660284799,3.43734,2618.3,2617.9,0.89947768]
[1729660284800,0.7934,2618.3,2617.9,4.33726768]
[1729660285748,4.23076,2618.3,2617.9,4.33726768]
[1729660286407,0.7934,2618.3,2617.9,0.89947768]
[1729660286614,0.7934,2618.3,2617.9,4.33732768]
[1729660288023,4.23076,2618.3,2617.9,4.33732768]
[1729660288223,0.7934,2618.3,2618.0,0.68979112]
[1729660288400,4.23058,2618.5,2618.0,4.12750112]
[1729660288732,3.43722,2618.4,2618.0,0.68979112]
[1729660288933,3.43722,2618.4,2617.9,5.11919167]
[1729660290013,5.11861167,2618.4,2617.9,3.4378]
[1729660290552,3.43722,2618.4,2617.9,5.11919167]
[1729660291715,5.91197167,2618.5,2618.0,3.43771]
[1729660292700,9.34912167,2618.5,2618.0,3.43771]
[1729660292906,3.43721,2618.4,2618.1,0.85569017]
[1729660294347,5.11860167,2618.4,2617.9,3.43778]
[1729660294646,5.91190167,2618.5,2618.0,3.43771]
[1729660295111,9.34905167,2618.5,2618.0,3.43771]
[1729660295544,3.43721,2618.4,2618.0,3.43771]
[1729660296447,2.47479167,2618.5,2618.0,6.87535]
[1729660296750,2.47479167,2618.5,2618.1,0.86331297]
[1729660296947,2.47479167,2618.5,2618.0,3.43764]
[1729660297111,1.68139167,2618.4,2618.0,3.43764]
[1729660297513,5.91193167,2618.5,2618.0,3.43764]
[1729660298030,3.43703,2618.6,2618.1,0.8028]
[1729660298237,5.91193167,2618.5,2618.0,3.43771]
[1729660298464,1.68139167,2618.3,2617.8,4.24069]
[1729660298776,3.0,2619.0,2617.6,0.8028]
[1729660298777,1.68139167,2618.0,2617.6,0.8028]
[1729660298975,0.784,2618.6,2617.4,0.8028]
[1729660299185,3.01,2618.7,2617.8,3.43794]
[1729660299186,0.784,2618.3,2617.8,3.43794]
[1729660300161,2.46539167,2618.3,2617.8,3.43794]
[1729660300660,3.43747,2618.2,2617.7,0.8186]
[1729660300979,1.68139167,2618.1,2617.5,0.8186]
[1729660301266,1.68139167,2618.1,2617.5,4.85083117]
[1729660301267,4.22181,2618.0,2617.5,4.85083117]
[1729660301459,5.90320167,2618.0,2617.5,4.03223117]
[1729660301659,5.90320167,2618.0,2617.5,0.59384117]
[1729660301856,3.43788,2617.9,2617.5,0.59384117]
[1729660302565,5.90320167,2618.0,2617.5,4.03216117]
[1729660303377,3.43788,2617.9,2617.5,0.59384117]
[1729660303544,5.11862167,2618.4,2617.3,0.8186]
[1729660303545,3.43816,2617.7,2617.3,0.8186]
[1729660303737,2.46539167,2617.7,2617.2,6.87743]
[1729660303935,0.784,2617.7,2617.3,3.43863]
[1729660304269,5.90353167,2617.7,2617.2,3.43871]
[1729660304469,4.22214,2617.7,2617.2,4.37647717]
[1729660304631,4.22214,2617.7,2617.2,6.05786884]
[1729660306192,4.22214,2617.7,2617.2,4.37647717]
[1729660306492,4.22214,2617.7,2617.2,9.49657884]
[1729660307591,4.22214,2617.7,2617.2,6.05786884]
[1729660308090,9.34175167,2617.7,2617.2,3.43871]
[1729660308652,5.90353167,2617.7,2617.2,3.43871]
[1729660309197,5.11979167,2617.5,2617.0,3.43892]
[1729660309356,1.68139167,2617.6,2617.1,3.43891]
[1729660309690,5.11965167,2617.6,2617.1,3.43891]
[1729660310275,0.784,2617.4,2616.9,3.43917]
[1729660310467,0.784,2617.4,2617.0,3.43904]
[1729660310674,4.22253,2617.4,2617.0,3.43904]
[1729660310869,4.22253,2617.4,2616.9,2.45109267]
[1729660311080,4.22253,2617.4,2616.9,5.89026267]
[1729660312070,4.22253,2617.4,2617.0,1.68139167]
[1729660312378,4.22253,2617.4,2617.0,5.12042167]
[1729660313368,0.784,2617.4,2617.0,5.12042167]
[1729660316817,0.784,2617.4,2617.1,1.68139167]
[1729660317172,0.784,2617.4,2617.3,1.68139167]
[1729660317402,4.20293,2617.7,2617.3,5.12004167]
[1729660317613,0.7648,2617.7,2617.3,5.12004167]
[1729660318401,4.20295,2617.7,2617.3,5.12004167]
[1729660319127,4.20295,2617.7,2617.3,3.43865]
[1729660320037,4.20295,2617.7,2617.2,1.68139167]
[1729660320262,4.20295,2617.7,2617.2,5.12011167]
[1729660320543,4.20295,2617.7,2617.2,6.11007306]
[1729660321458,4.20295,2617.7,2617.2,4.42868139]
[1729660321600,4.20295,2617.7,2617.2,6.11007306]
[1729660322438,3.43826,2617.6,2617.2,0.98996139]
[1729660322749,4.20295,2617.7,2617.2,5.12007167]
[1729660324237,4.20295,2617.7,2617.1,6.46089394]
[1729660324444,3.43826,2617.6,2617.1,6.46089394]
[1729660324761,4.20293,2617.7,2617.1,6.46089394]
[1729660324934,4.20293,2617.7,2617.2,5.76619106]
[1729660325652,4.20293,2617.7,2617.2,4.08479939]
[1729660326023,3.43828,2617.6,2617.2,0.64608939]
[1729660326414,3.43828,2617.6,2617.2,4.08486939]
[1729660327440,4.20293,2617.7,2617.2,4.08486939]
[1729660328553,4.20293,2617.7,2617.2,5.76626106]
[1729660328919,0.7648,2617.7,2617.2,5.76626106]
[1729660329118,0.7648,2617.7,2617.3,0.99567511]
[1729660330213,0.7648,2617.7,2617.3,4.43425511]
[1729660330412,0.7648,2617.7,2617.3,9.55422678]
[1729660330664,0.7648,2617.7,2617.3,6.11564678]
[1729660330961,3.43787,2617.9,2617.5,1.68139167]
[1729660331159,4.24171,2617.8,2617.4,4.22578]
[1729660331326,4.24171,2617.8,2617.5,3.43839]
[1729660331327,0.8037,2617.8,2617.5,3.43839]
[1729660336065,0.8037,2618.2,2617.7,2.46869167]
[1729660336328,3.0,2618.7,2617.4,0.07640306]
[1729660336329,0.8037,2617.8,2617.4,4.22573]
[1729660336648,0.8037,2617.8,2617.5,1.68139167]
[1729660336834,3.4377,2618.1,2617.6,0.59071417]
[1729660337029,0.8037,2618.0,2617.6,4.02891417]
[1729660337671,4.24144,2618.0,2617.6,0.59071417]
[1729660337878,0.8037,2618.0,2617.4,4.22575]
[1729660338033,3.43819,2617.7,2617.2,4.22596]
[1729660338358,3.43819,2617.7,2617.2,3.43866]
[1729660338568,0.8037,2617.8,2617.3,3.43862]
[1729660338938,3.4382,2617.7,2617.2,3.43866]
[1729660339671,0.8037,2617.8,2617.3,3.43862]
[1729660340535,4.24172,2617.8,2617.3,3.43862]
[1729660346279,0.8037,2617.8,2617.4,6.87697]
[1729660346485,0.8037,2617.8,2617.4,5.88654167]
[1729660346719,0.8037,2617.8,2617.4,4.20515]
[1729660348404,0.8037,2617.8,2617.4,7.6436]
[1729660348594,0.8037,2617.8,2617.4,4.20515]
[1729660348798,0.8037,2617.8,2617.4,7.6436]
[1729660349319,0.8037,2617.8,2617.4,4.20515]
[1729660350022,0.8037,2617.8,2617.4,5.88654167]
[1729660350524,0.8037,2617.8,2617.4,5.26113528]
[1729660351726,0.8037,2617.8,2617.4,4.49443528]
[1729660352282,4.2417,2617.8,2617.2,7.12140284]
[1729660352483,0.8089,2617.6,2617.2,8.11202117]
[1729660352917,0.8089,2617.6,2617.3,3.43865]
[1729660353306,0.8089,2617.6,2617.4,3.43852]
[1729660354023,0.8089,2617.6,2617.2,8.11197117]
[1729660354232,0.8089,2617.6,2617.3,3.43864]
[1729660355819,0.8089,2617.6,2617.2,4.67329117]
[1729660356022,0.8089,2617.6,2617.3,3.43865]
[1729660360534,0.8089,2617.6,2617.2,3.43866]
[1729660361144,0.8089,2617.6,2617.2,6.87738]
[1729660362220,0.8089,2617.6,2617.2,3.43866]
[1729660362432,0.8089,2617.6,2617.2,6.87737]
[1729660363238,0.8089,2617.6,2617.3,3.43863]
[1729660364003,0.8089,2617.6,2617.2,3.43866]
[1729660364352,0.8089,2617.6,2617.3,3.43865]
[1729660367710,4.2472,2617.6,2617.1,3.43885]
[1729660367912,4.2472,2617.6,2617.0,3.43904]
[1729660367913,4.26056,2617.5,2617.0,3.43904]
[1729660368243,0.8221,2617.5,2617.1,3.43888]
[1729660368953,4.26049,2617.5,2617.0,3.43904]
[1729660369157,4.26049,2617.5,2617.0,3.43897]
[1729660369548,0.8221,2617.5,2617.0,5.12036167]
[1729660369749,4.2605,2617.5,2617.0,6.87796]
[1729660370218,4.2605,2617.5,2617.1,3.4389]
[1729660370422,0.8221,2617.5,2617.1,3.4389]
[1729660371323,0.8221,2617.5,2617.0,5.12036167]
[1729660371523,0.8221,2617.5,2617.0,3.43897]
[1729660371824,4.2605,2617.5,2617.0,3.43897]
[1729660372767,4.2605,2617.5,2617.0,8.55934167]
[1729660373071,4.2605,2617.5,2617.0,6.87795]
[1729660373225,4.2605,2617.5,2617.0,8.55934167]
[1729660373428,5.94210167,2617.4,2616.8,4.6400438]
[1729660373739,3.43866,2617.3,2616.8,5.12057167]
[1729660373923,0.8221,2617.2,2616.9,1.68139167]
[1729660374333,0.8221,2617.2,2616.9,5.12051167]
[1729660374550,0.8221,2617.2,2616.8,5.12057167]
[1729660374755,0.8221,2617.2,2616.8,8.55980167]
[1729660375131,0.8221,2617.2,2616.8,5.12057167]
[1729660375330,0.8221,2617.2,2616.7,5.12083167]
[1729660375563,0.8221,2617.2,2616.8,1.68139167]
[1729660376690,0.8221,2617.2,2616.7,5.12083167]
[1729660378068,0.8221,2617.2,2616.8,3.4393]
[1729660378464,0.8221,2617.2,2616.8,5.12069167]
[1729660379445,0.8221,2617.2,2616.7,1.68139167]
[1729660379446,4.2609,2617.2,2616.7,1.68139167]
[1729660379635,4.2609,2617.2,2616.7,5.12083167]
[1729660379839,0.8221,2617.2,2616.8,5.12068167]
[1729660380062,0.8221,2617.2,2616.8,3.43929]
[1729660380437,0.8221,2617.2,2616.7,2.61688184]
[1729660380765,4.26093,2617.2,2616.7,6.05630184]
[1729660380965,0.8221,2617.2,2616.8,3.43927]
[1729660381174,0.8221,2617.2,2616.7,6.05630184]
[1729660381330,4.26092,2617.2,2616.7,6.05630184]
[1729660381950,4.26092,2617.2,2616.7,9.49566184]
[1729660382166,4.26092,2617.2,2616.7,6.05624184]
[1729660382465,4.26092,2617.2,2616.7,9.49561184]
[1729660382673,0.8221,2617.2,2616.8,3.4393]
[1729660382834,0.8221,2617.2,2616.8,6.07024585]
[1729660383165,0.8221,2617.2,2616.8,2.63094585]
[1729660383541,0.8221,2617.2,2616.8,6.07022585]
[1729660391486,0.8221,2617.2,2616.8,6.89592585]
[1729660395174,0.8221,2617.2,2616.8,5.94637167]
[1729660397507,4.2609,2617.2,2616.8,3.43928]
[1729660400703,3.43892,2617.1,2616.6,5.94654167]
[1729660400883,0.8221,2617.2,2616.7,3.51574437]
[1729660401077,0.8221,2617.2,2616.8,3.43928]
[1729660405487,0.8221,2617.2,2616.7,3.43932]
[1729660405488,4.26089,2617.2,2616.7,3.43932]
[1729660405810,0.7772,2617.1,2616.7,3.43932]
[1729660406013,0.7772,2617.1,2616.7,7.85478755]
[1729660406803,0.7772,2617.1,2616.7,4.41543755]
[1729660407010,0.7772,2617.1,2616.7,3.43932]
[1729660407176,0.7772,2617.1,2616.7,6.87868]
[1729660407876,0.7772,2617.1,2616.7,3.43932]
[1729660408925,0.7772,2617.1,2616.7,3.5157443]
[1729660409096,0.7772,2617.1,2616.8,3.43929]
[1729660409296,0.7772,2617.1,2616.8,4.42301898]
[1729660415079,0.7772,2617.1,2616.9,3.43916]
[1729660417024,0.7772,2617.3,2616.9,3.43916]
[1729660420524,0.7772,2617.3,2616.9,3.43911]
[1729660420825,0.7772,2617.3,2617.0,3.43904]
[1729660421021,0.7772,2617.3,2617.0,0.96196948]
[1729660421587,0.7772,2617.3,2617.0,4.40099948]
[1729660422225,0.7772,2617.3,2617.1,3.43888]
[1729660422429,4.20432,2617.6,2617.2,1.68139167]
[1729660422618,4.20432,2617.6,2617.1,5.87817167]
[1729660422815,4.20432,2617.6,2617.2,1.02791711]
[1729660423005,0.766,2617.6,2617.2,6.14802878]
[1729660423205,3.43849,2617.5,2617.0,3.43896]
[1729660423401,3.43849,2617.5,2617.0,6.87794]
[1729660423605,0.766,2617.4,2617.0,3.43896]